[Event "FIDE WYCC Girls U18 2023"]
[Site "Montesilvano"]
[Date "2023.11.20"]
[Round "7.17"]
[White "Menon, Gauri"]
[Black "Starosta, Martyna"]
[Result "0-1"]
[ECO "A28"]
[WhiteElo "1821"]
[BlackElo "2208"]
[Annotator "RC"]
[PlyCount "86"]
[EventDate "2023.11.13"]
[EventType "swiss"]
[EventCountry "ITA"]
[SourceTitle "playchess.com"]
[Source "ChessBase"]
[SourceQuality "1"]
[TimeControl "40/5400+30:1800+30"]

1. c4 {[%emt 0:00:04]} e5 {[%emt 0:00:05]} 2. Nc3 {[%emt 0:00:07]} Nf6 {[%emt 0:00:06]} 3. Nf3 {[%emt 0:00:05]} Nc6 {[%emt 0:00:07]} 4. a3 {[%emt 0:00:09]} d5 {[%emt 0:05:37]} 5. cxd5 {[%emt 0:00:09]} Nxd5 {[%emt 0:00:07]} 6. Qc2 {[%emt 0:00:14]} Be7 {[%emt 0:02:57]} 7. e3 {[%emt 0:01:01]} O-O {[%emt 0:02:21]} 8. Bd3 {[%emt 0:00:42]} h6 {[%emt 0:04:45]} 9. Nxd5 {[%emt 0:04:07]} Qxd5 {[%emt 0:00:07]} 10. Be4 {[%emt 0:01:03]} Qd6 {[%emt 0:08:28]} 11. Qc3 {[%emt 0:04:50]} Bd7 {[%emt 0:05:34]} 12. Bxc6 {[%emt 0:14:51]} Bxc6 {[%emt 0:00:28]} 13. Qxe5 {[%emt 0:00:37]} Qxe5 {[%emt 0:02:16]} 14. Nxe5 {[%emt 0:00:09]} Bxg2 {[%emt 0:00:25]} 15. Rg1 {[%emt 0:00:07]} Bd5 {[%emt 0:04:04]} 16. d3 {[%emt 0:15:43]} Kh7 {[%emt 0:03:45]} 17. e4 {[%emt 0:01:51]} Bd6 {[%emt 0:04:07]} 18. Ng4 {[%emt 0:03:53]} Be6 {[%emt 0:02:46]} 19. e5 {[%emt 0:14:35]} Be7 {[%emt 0:08:54]} 20. f4 {[%emt 0:06:25]} Rad8 {[%emt 0:02:17]} 21. Ke2 {[%emt 0:00:34]} Bf5 {[%emt 0:05:44]} 22. Nf2 {[%emt 0:02:31]} f6 {[%emt 0:01:49]} 23. b4 {[%emt 0:12:49]} fxe5 {[%emt 0:04:17]} 24. Bb2 {[%emt 0:01:13]} Bf6 {[%emt 0:01:25]} 25. fxe5 {[%emt 0:00:48]} Bh4 {[%emt 0:00:34]} 26. d4 {[%emt 0:01:17]} Bg6 {[%emt 0:06:13]} 27. Nd1 {[%emt 0:09:56]} c6 {[%emt 0:05:06]} 28. Rc1 {[%emt 0:00:55]} Bh5+ {[%emt 0:03:33]} 29. Kd3 {[%emt 0:00:20]} Rf3+ {[%emt 0:00:55]} 30. Ke4 {[%emt 0:02:26]} Rh3 {[%emt 0:09:36]} 31. b5 {[%emt 0:01:17]} Bf3+ {[%emt 0:02:17]} 32. Kf5 {[%emt 0:00:14]} g6+ {[%emt 0:02:45]} 33. Rxg6 {[%emt 0:00:17]} Rf8+ {[%emt 0:00:27]} 34. Rf6 {[%emt 0:00:25]} Bxf6 {[%emt 0:00:16]} 35. exf6 {[%emt 0:00:06]} Bxd1 {[%emt 0:01:13]} 36. d5 {[%emt 0:00:52]} Rh5+ {[%emt 0:01:32]} 37. Ke6 {[%emt 0:00:18]} Rxd5 {[%emt 0:00:48]} 38. bxc6 {[%emt 0:00:49]} bxc6 {[%emt 0:00:06]} 39. Rxc6 {[%emt 0:00:51]} Rdd8 {[%emt 0:00:49]} 40. Rc7+ {[%emt 0:00:00]} Kg6 {[%emt 0:00:00]} 41. Rg7+ {[%emt 0:08:47]} Kh5 {[%emt 0:00:27]} 42. f7 {[%emt 0:05:13]} Bb3+ {[%emt 0:04:45]} 43. Kf6 {[%emt 0:04:40]} Rd7 0-1

[Event "FIDE WYCC Girls U18 2023"]
[Site "Montesilvano"]
[Date "2023.11.20"]
[Round "7.18"]
[White "Cornileau, Juliette"]
[Black "Egger, Stefanie"]
[Result "1-0"]
[ECO "D31"]
[WhiteElo "2089"]
[BlackElo "1784"]
[Annotator "NA RC"]
[PlyCount "81"]
[EventDate "2023.11.13"]
[EventType "swiss"]
[EventCountry "ITA"]
[SourceTitle "playchess.com"]
[Source "ChessBase"]
[SourceQuality "1"]
[TimeControl "40/5400+30:1800+30"]

1. d4 {[%emt 0:00:03]} d5 {[%emt 0:00:05]} 2. c4 {[%emt 0:00:03]} e6 {[%emt 0:00:04]} 3. Nc3 {[%emt 0:00:03]} a6 {[%emt 0:00:04]} 4. cxd5 {[%emt 0:01:41]} exd5 {[%emt 0:00:05]} 5. Bf4 {[%emt 0:15:13]} Nf6 {[%emt 0:00:31]} 6. e3 {[%emt 0:00:41]} Bd6 {[%emt 0:00:12]} 7. Bg5 {[%emt 0:04:50]} c6 {[%emt 0:07:02]} 8. Bd3 {[%emt 0:01:17]} O-O {[%emt 0:01:27]} 9. Nge2 {[%emt 0:01:00]} Nbd7 {[%emt 0:06:49]} 10. f3 {[%emt 0:08:41]} Qc7 {[%emt 0:08:22]} 11. e4 {[%emt 0:09:22]} dxe4 {[%emt 0:05:37]} 12. fxe4 {[%emt 0:03:37]} Bb4 {[%emt 0:11:04]} 13. a3 {[%emt 0:14:56]} Ba5 {[%emt 0:00:40]} 14. e5 {[%emt 0:02:33]} Nd5 {[%emt 0:01:39]} 15. O-O {[%emt 0:05:01]} Nxc3 {[%emt 0:01:55]} 16. bxc3 {[%emt 0:01:23]} c5 {[%emt 0:03:27]} 17. Nf4 {[%emt 0:07:49]} Nxe5 {[%emt 0:11:06]} 18. Bxh7+ {[%emt 0:09:15]} Kxh7 {[%emt 0:10:22]} 19. Nd5 {[%emt 0:00:22]} Ng6 {[%emt 0:05:23]} 20. Nxc7 {[%emt 0:00:40]} Bxc7 {[%emt 0:00:03]} 21. h4 {[%emt 0:02:35]} cxd4 {[%emt 0:02:03]} 22. cxd4 {[%emt 0:00:05]} Kg8 {[%emt 0:01:14]} 23. h5 {[%emt 0:01:03]} Nh8 {[%emt 0:00:06]} 24. Qf3 {[%emt 0:01:40]} Bb6 {[%emt 0:00:33]} 25. Rad1 {[%emt 0:00:12]} Be6 {[%emt 0:01:41]} 26. Be3 {[%emt 0:02:43]} Bc4 {[%emt 0:00:36]} 27. Rf2 {[%emt 0:00:23]} Rfe8 {[%emt 0:00:20]} 28. Rb2 {[%emt 0:00:19]} Bd8 {[%emt 0:00:59]} 29. Rxb7 {[%emt 0:00:42]} Bf6 {[%emt 0:00:08]} 30. d5 {[%emt 0:02:12]} Rad8 {[%emt 0:00:36]} 31. d6 {[%emt 0:01:07]} Bb5 {[%emt 0:00:28]} 32. Qf2 {[%emt 0:02:38]} Bc6 {[%emt 0:00:57]} 33. Rc7 {[%emt 0:00:19]} Bb5 {[%emt 0:00:15]} 34. Ra7 {[%emt 0:01:31]} Re6 {[%emt 0:00:30]} 35. d7 {[%emt 0:00:16]} Re7 {[%emt 0:00:50]} 36. Bb6 {[%emt 0:00:26]} Rexd7 {[%emt 0:00:28]} 37. Raxd7 {[%emt 0:00:15]} Rxd7 {[%emt 0:00:04]} 38. Rxd7 {[%emt 0:00:04]} Bxd7 {[%emt 0:00:04]} 39. Qc2 {[%emt 0:01:06]} g6 {[%emt 0:01:04]} 40. h6 {[%emt 0:00:00]} Bg5 {[%emt 0:00:00]} 41. Bd4 {[%emt 0:03:31]} 1-0

[Event "FIDE WYCC Girls U18 2023"]
[Site "Montesilvano"]
[Date "2023.11.20"]
[Round "7.19"]
[White "Sevcikova, Lucia"]
[Black "Soares, Sara Joana De Moura "]
[Result "1-0"]
[ECO "D31"]
[WhiteElo "2047"]
[BlackElo "1772"]
[Annotator "NA RC"]
[PlyCount "73"]
[EventDate "2023.11.13"]
[EventType "swiss"]
[EventCountry "ITA"]
[SourceTitle "playchess.com"]
[Source "ChessBase"]
[SourceQuality "1"]
[TimeControl "40/5400+30:1800+30"]

1. d4 {[%emt 0:00:03]} d5 {[%emt 0:00:19]} 2. c4 {[%emt 0:00:04]} e6 {[%emt 0:00:21]} 3. Nc3 {[%emt 0:00:08]} Be7 {[%emt 0:00:17]} 4. cxd5 {[%emt 0:00:09]} exd5 {[%emt 0:00:08]} 5. Bf4 {[%emt 0:00:09]} Nf6 {[%emt 0:00:23]} 6. e3 {[%emt 0:00:20]} c6 {[%emt 0:00:57]} 7. Bd3 {[%emt 0:00:54]} Nbd7 {[%emt 0:03:17]} 8. Qc2 {[%emt 0:06:44]} O-O {[%emt 0:09:25]} 9. Nf3 {[%emt 0:03:20]} Re8 {[%emt 0:05:38]} 10. O-O {[%emt 0:03:04]} Nf8 {[%emt 0:00:33]} 11. h3 {[%emt 0:02:54]} Ne6 {[%emt 0:05:34]} 12. Be5 {[%emt 0:03:07]} g6 {[%emt 0:01:51]} 13. Rab1 {[%emt 0:06:09]} a5 {[%emt 0:00:56]} 14. a3 {[%emt 0:04:35]} Ng7 {[%emt 0:01:50]} 15. Na4 {[%emt 0:06:57]} Bf5 {[%emt 0:04:34]} 16. Bxf5 {[%emt 0:02:11]} Nxf5 {[%emt 0:00:35]} 17. b4 {[%emt 0:00:58]} axb4 {[%emt 0:02:12]} 18. axb4 {[%emt 0:00:05]} b5 {[%emt 0:09:45]} 19. Nc5 {[%emt 0:03:46]} Nd7 {[%emt 0:08:21]} 20. Rfc1 {[%emt 0:10:32]} Bxc5 {[%emt 0:08:37]} 21. bxc5 {[%emt 0:01:03]} Nh4 {[%emt 0:02:56]} 22. Bg3 {[%emt 0:06:40]} Nf5 {[%emt 0:18:17]} 23. Bf4 {[%emt 0:04:21]} Qc8 {[%emt 0:04:32]} 24. Ra1 {[%emt 0:04:39]} Qb7 {[%emt 0:00:23]} 25. Qb2 {[%emt 0:01:33]} Ng7 {[%emt 0:06:43]} 26. Ne1 {[%emt 0:02:42]} Nh5 {[%emt 0:01:14]} 27. Bh2 {[%emt 0:01:10]} Nhf6 {[%emt 0:00:02]} 28. Nd3 {[%emt 0:01:52]} Ne4 {[%emt 0:01:43]} 29. Rxa8 {[%emt 0:05:32]} Rxa8 {[%emt 0:00:29]} 30. f3 {[%emt 0:00:07]} Nef6 {[%emt 0:00:19]} 31. Ra1 {[%emt 0:00:46]} Ra7 {[%emt 0:03:15]} 32. Rxa7 {[%emt 0:02:10]} Qxa7 {[%emt 0:00:01]} 33. Nb4 {[%emt 0:00:08]} Qa8 {[%emt 0:01:00]} 34. Qa2 {[%emt 0:00:49]} Qe8 {[%emt 0:00:02]} 35. Kf2 {[%emt 0:01:13]} Nh5 {[%emt 0:00:59]} 36. Qa6 {[%emt 0:04:36]} Qe7 {[%emt 0:00:25]} 37. Qxc6 {[%emt 0:01:18]} 1-0

[Event "FIDE WYCC Girls U18 2023"]
[Site "Montesilvano"]
[Date "2023.11.20"]
[Round "7.20"]
[White "Follana Albelda, Lucia"]
[Black "Latifah, Darmaki"]
[Result "*"]
[WhiteElo "1946"]
[BlackElo "1367"]
[Annotator "NA RC"]
[PlyCount "89"]
[EventDate "2023.11.13"]
[EventType "swiss"]
[EventCountry "ITA"]
[SourceTitle "playchess.com"]
[Source "ChessBase"]
[SourceQuality "1"]
[TimeControl "40/5400+30:1800+30"]

1. e4 {[%emt 0:00:03]} e5 {[%emt 0:00:06]} 2. Nf3 {[%emt 0:00:09]} Nc6 {[%emt 0:00:08]} 3. Bc4 {[%emt 0:00:14]} Bc5 {[%emt 0:00:25]} 4. d3 {[%emt 0:00:09]} Nf6 {[%emt 0:00:33]} 5. c3 {[%emt 0:00:10]} d6 {[%emt 0:00:14]} 6. O-O {[%emt 0:00:08]} a6 {[%emt 0:03:23]} 7. Bb3 {[%emt 0:00:19]} Ba7 {[%emt 0:04:23]} 8. Nbd2 {[%emt 0:00:11]} h6 {[%emt 0:01:41]} 9. Re1 {[%emt 0:00:25]} g5 {[%emt 0:01:55]} 10. Nf1 {[%emt 0:00:13]} g4 {[%emt 0:03:31]} 11. N3d2 {[%emt 0:00:08]} Rg8 {[%emt 0:27:20]} 12. Nc4 {[%emt 0:02:54]} h5 {[%emt 0:22:33]} 13. Be3 {[%emt 0:01:51]} Bxe3 {[%emt 0:00:44]} 14. Ncxe3 {[%emt 0:07:35]} h4 {[%emt 0:06:36]} 15. Qc2 {[%emt 0:04:05]} Nh7 {[%emt 0:08:26]} 16. Qe2 {[%emt 0:10:19]} Bd7 {[%emt 0:07:37]} 17. Nd5 {[%emt 0:07:54]} Ng5 {[%emt 0:00:49]} 18. Kh1 {[%emt 0:00:49]} Na5 {[%emt 0:05:31]} 19. Bc2 {[%emt 0:00:28]} h3 {[%emt 0:01:55]} 20. g3 {[%emt 0:00:13]} Nf3 {[%emt 0:00:02]} 21. Red1 {[%emt 0:00:17]} Nc6 {[%emt 0:01:41]} 22. Nfe3 {[%emt 0:06:34]} Be6 {[%emt 0:00:39]} 23. b4 {[%emt 0:01:31]} Rg6 {[%emt 0:00:22]} 24. a4 {[%emt 0:01:10]} Ne7 {[%emt 0:00:46]} 25. d4 {[%emt 0:02:37]} c6 {[%emt 0:00:55]} 26. Nxe7 {[%emt 0:00:28]} Qxe7 {[%emt 0:00:02]} 27. d5 {[%emt 0:00:21]} Bd7 {[%emt 0:00:06]} 28. dxc6 {[%emt 0:01:16]} bxc6 {[%emt 0:00:39]} 29. Nf5 {[%emt 0:02:44]} Bxf5 {[%emt 0:00:43]} 30. exf5 {[%emt 0:00:06]} Rf6 {[%emt 0:00:03]} 31. Qe4 {[%emt 0:00:42]} d5 {[%emt 0:01:35]} 32. Qxg4 {[%emt 0:00:57]} e4 {[%emt 0:00:01]} 33. Qxh3 {[%emt 0:01:53]} Rd8 {[%emt 0:00:53]} 34. Kg2 {[%emt 0:06:07]} Qe5 {[%emt 0:00:15]} 35. g4 {[%emt 0:03:02]} Rdd6 {[%emt 0:00:48]} 36. Qg3 {[%emt 0:06:50]} Qxc3 {[%emt 0:00:02]} 37. Bd3 {[%emt 0:01:29]} Rh6 {[%emt 0:01:03]} 38. h3 {[%emt 0:00:37]} Qe5 {[%emt 0:00:29]} 39. Qxe5+ {[%emt 0:00:58]} Nxe5 {[%emt 0:00:02]} 40. Bxa6 {[%emt 0:00:00]} d4 {[%emt 0:00:00]} 41. Re1 {[%emt 0:01:03]} Kd8 {[%emt 0:05:14]} 42. Rxe4 {[%emt 0:01:02]} Nd7 {[%emt 0:00:10]} 43. Rd1 {[%emt 0:02:12]} c5 {[%emt 0:00:15]} 44. Bb5 {[%emt 0:00:49]} Nf6 {[%emt 0:01:14]} 45. Ree1 {[%emt 0:00:20]} *

[Event "FIDE WYCC Girls U18 2023"]
[Site "Montesilvano"]
[Date "2023.11.20"]
[Round "7.21"]
[White "Hernandez Ortega, Carolina"]
[Black "Groeschel, Karoline"]
[Result "*"]
[ECO "B58"]
[WhiteElo "1796"]
[BlackElo "1924"]
[Annotator "NA RC"]
[PlyCount "89"]
[EventDate "2023.11.13"]
[EventType "swiss"]
[EventCountry "ITA"]
[SourceTitle "playchess.com"]
[Source "ChessBase"]
[SourceQuality "1"]
[TimeControl "40/5400+30:1800+30"]

1. e4 {[%emt 0:00:06]} c5 {[%emt 0:00:03]} 2. Nf3 {[%emt 0:00:08]} d6 {[%emt 0:00:03]} 3. d4 {[%emt 0:00:09]} cxd4 {[%emt 0:00:05]} 4. Nxd4 {[%emt 0:00:07]} Nf6 {[%emt 0:00:04]} 5. Nc3 {[%emt 0:00:24]} Nc6 {[%emt 0:00:05]} 6. Be2 {[%emt 0:00:28]} g6 {[%emt 0:00:05]} 7. O-O {[%emt 0:00:39]} Bg7 {[%emt 0:00:05]} 8. Nb3 {[%emt 0:01:46]} O-O {[%emt 0:00:22]} 9. f4 {[%emt 0:01:36]} a6 {[%emt 0:03:36]} 10. Be3 {[%emt 0:01:22]} b5 {[%emt 0:00:04]} 11. Bf3 {[%emt 0:01:58]} Bb7 {[%emt 0:00:04]} 12. e5 {[%emt 0:09:03]} dxe5 {[%emt 0:00:16]} 13. Nc5 {[%emt 0:00:10]} exf4 {[%emt 0:35:28]} 14. Qxd8 {[%emt 0:09:02]} Nxd8 {[%emt 0:01:22]} 15. Bxb7 {[%emt 0:10:33]} Nxb7 {[%emt 0:00:51]} 16. Rxf4 {[%emt 0:00:21]} Nd6 {[%emt 0:04:51]} 17. Bd4 {[%emt 0:05:28]} Rfc8 {[%emt 0:05:51]} 18. Rf3 {[%emt 0:12:07]} Nf5 {[%emt 0:02:01]} 19. Bf2 {[%emt 0:00:52]} Ng4 {[%emt 0:00:38]} 20. Nb3 {[%emt 0:08:05]} Nxf2 {[%emt 0:00:35]} 21. Rxf2 {[%emt 0:01:23]} Bxc3 {[%emt 0:02:49]} 22. bxc3 {[%emt 0:00:06]} Rxc3 {[%emt 0:00:25]} 23. Re1 {[%emt 0:07:14]} Rac8 {[%emt 0:08:02]} 24. Ree2 {[%emt 0:02:10]} e6 {[%emt 0:01:59]} 25. Rd2 {[%emt 0:02:56]} R3c7 {[%emt 0:05:02]} 26. Na1 {[%emt 0:02:03]} e5 {[%emt 0:06:25]} 27. g4 {[%emt 0:08:01]} Nd4 {[%emt 0:00:52]} 28. Rf6 {[%emt 0:01:13]} Rc6 {[%emt 0:02:03]} 29. Rdf2 {[%emt 0:00:50]} Rxf6 {[%emt 0:01:08]} 30. Rxf6 {[%emt 0:00:06]} Rc6 {[%emt 0:00:03]} 31. Rxc6 {[%emt 0:00:30]} Nxc6 {[%emt 0:00:05]} 32. Kf2 {[%emt 0:00:39]} f5 {[%emt 0:00:41]} 33. gxf5 {[%emt 0:01:19]} gxf5 {[%emt 0:00:04]} 34. c3 {[%emt 0:00:09]} Kf7 {[%emt 0:00:42]} 35. Nb3 {[%emt 0:00:09]} a5 {[%emt 0:02:43]} 36. Nc5 {[%emt 0:01:12]} Ke7 {[%emt 0:01:37]} 37. Ke3 {[%emt 0:01:52]} Kd6 {[%emt 0:00:31]} 38. Nb3 {[%emt 0:00:27]} a4 {[%emt 0:00:53]} 39. Nd2 {[%emt 0:01:49]} Kd5 {[%emt 0:02:07]} 40. h4 {[%emt 0:00:00]} Na5 {[%emt 0:00:00]} 41. Nf3 {[%emt 0:01:53]} f4+ {[%emt 0:04:36]} 42. Ke2 {[%emt 0:01:21]} h5 {[%emt 0:04:26]} 43. Ng5 {[%emt 0:01:01]} e4 {[%emt 0:00:12]} 44. Nh7 {[%emt 0:00:33]} Ke5 {[%emt 0:00:29]} 45. Nf8 {[%emt 0:00:08]} *

[Event "FIDE WYCC Girls U18 2023"]
[Site "Montesilvano"]
[Date "2023.11.20"]
[Round "7.22"]
[White "Wisniowski, Natalie"]
[Black "O'Carroll, Om"]
[Result "1-0"]
[ECO "D10"]
[WhiteElo "1901"]
[BlackElo "1737"]
[Annotator "NA RC"]
[PlyCount "111"]
[EventDate "2023.11.13"]
[EventType "swiss"]
[EventCountry "ITA"]
[SourceTitle "playchess.com"]
[Source "ChessBase"]
[SourceQuality "1"]
[TimeControl "40/5400+30:1800+30"]

1. d4 {[%emt 0:00:02]} d5 {[%emt 0:00:05]} 2. c4 {[%emt 0:00:09]} c6 {[%emt 0:00:04]} 3. cxd5 {[%emt 0:00:09]} cxd5 {[%emt 0:00:08]} 4. Nf3 {[%emt 0:00:10]} Nf6 {[%emt 0:00:49]} 5. Nc3 {[%emt 0:00:12]} Nc6 {[%emt 0:00:25]} 6. Bf4 {[%emt 0:00:11]} a6 {[%emt 0:01:02]} 7. Ne5 {[%emt 0:00:13]} Bf5 {[%emt 0:05:43]} 8. e3 {[%emt 0:03:53]} e6 {[%emt 0:03:07]} 9. Rc1 {[%emt 0:06:11]} Be7 {[%emt 0:06:36]} 10. Be2 {[%emt 0:02:59]} O-O {[%emt 0:05:36]} 11. g4 {[%emt 0:11:26]} Be4 {[%emt 0:03:33]} 12. f3 {[%emt 0:01:33]} Nxe5 {[%emt 0:12:52]} 13. dxe5 {[%emt 0:07:27]} Nxg4 {[%emt 0:04:32]} 14. Nxe4 {[%emt 0:05:48]} Qb6 {[%emt 0:27:11]} 15. Qd4 {[%emt 0:11:49]} Qa5+ {[%emt 0:08:03]} 16. Nc3 {[%emt 0:00:40]} Bc5 {[%emt 0:02:07]} 17. Qd2 {[%emt 0:01:46]} Nxe3 {[%emt 0:06:44]} 18. Bxe3 {[%emt 0:00:45]} d4 {[%emt 0:00:21]} 19. Bf2 {[%emt 0:11:12]} Rfd8 {[%emt 0:03:37]} 20. Qc2 {[%emt 0:04:19]} dxc3 {[%emt 0:01:12]} 21. bxc3 {[%emt 0:00:11]} Bxf2+ {[%emt 0:01:12]} 22. Kxf2 {[%emt 0:00:01]} Qxe5 {[%emt 0:00:14]} 23. Qe4 {[%emt 0:03:24]} Qc5+ {[%emt 0:00:23]} 24. Qe3 {[%emt 0:00:17]} Qa5 {[%emt 0:00:49]} 25. Rhd1 {[%emt 0:04:27]} Qxa2 {[%emt 0:03:55]} 26. Qb6 {[%emt 0:00:13]} Rdb8 {[%emt 0:02:24]} 27. Rd7 {[%emt 0:00:25]} Qa4 {[%emt 0:00:26]} 28. Rcd1 {[%emt 0:02:21]} Qh4+ {[%emt 0:00:18]} 29. Kg2 {[%emt 0:00:45]} Qg5+ {[%emt 0:00:49]} 30. Kh1 {[%emt 0:00:22]} h5 {[%emt 0:00:16]} 31. Rxb7 {[%emt 0:02:56]} Rc8 {[%emt 0:00:07]} 32. Qd4 {[%emt 0:04:21]} a5 {[%emt 0:01:10]} 33. Rg1 {[%emt 0:03:16]} Qh6 {[%emt 0:00:06]} 34. Rb5 {[%emt 0:01:00]} Rd8 {[%emt 0:00:24]} 35. Qe5 {[%emt 0:00:40]} Rd2 {[%emt 0:00:42]} 36. Qe4 {[%emt 0:04:58]} Rdd8 {[%emt 0:00:40]} 37. Rbg5 {[%emt 0:00:53]} g6 {[%emt 0:00:23]} 38. Qh4 {[%emt 0:02:25]} Kf8 {[%emt 0:00:10]} 39. Rxa5 {[%emt 0:00:14]} Rdc8 {[%emt 0:00:39]} 40. Qb4+ {[%emt 0:00:00]} Kg8 {[%emt 0:00:00]} 41. Rxa8 {[%emt 0:04:47]} Rxa8 {[%emt 0:00:17]} 42. Qe4 {[%emt 0:00:23]} Ra2 {[%emt 0:01:37]} 43. Rd1 {[%emt 0:03:08]} Qg5 {[%emt 0:00:54]} 44. c4 {[%emt 0:07:05]} h4 {[%emt 0:02:58]} 45. f4 {[%emt 0:01:37]} Qc5 {[%emt 0:05:15]} 46. Kg2 {[%emt 0:00:39]} h3+ {[%emt 0:05:02]} 47. Kf1 {[%emt 0:00:47]} Qa3 {[%emt 0:02:21]} 48. Qd3 {[%emt 0:04:59]} Qb2 {[%emt 0:01:09]} 49. Rb1 {[%emt 0:01:24]} Qf6 {[%emt 0:00:34]} 50. Qe3 {[%emt 0:01:30]} Rc2 {[%emt 0:04:20]} 51. Qe5 {[%emt 0:09:08]} Qxe5 {[%emt 0:02:38]} 52. fxe5 {[%emt 0:00:01]} Rc3 {[%emt 0:00:18]} 53. Kf2 {[%emt 0:00:05]} Kg7 {[%emt 0:01:06]} 54. Rg1 {[%emt 0:00:18]} Ra3 {[%emt 0:02:15]} 55. Rg3 {[%emt 0:00:14]} Ra5 {[%emt 0:00:04]} 56. Re3 {[%emt 0:00:12]} 1-0

[Event "FIDE WYCC Girls U18 2023"]
[Site "Montesilvano"]
[Date "2023.11.20"]
[Round "7.23"]
[White "Katter, Katharina"]
[Black "Tsapaki, Asimenia"]
[Result "*"]
[ECO "E11"]
[WhiteElo "1887"]
[BlackElo "1702"]
[Annotator "NA COMBH"]
[PlyCount "65"]
[EventDate "2023.11.13"]
[EventType "swiss"]
[EventCountry "ITA"]
[SourceTitle "playchess.com"]
[Source "ChessBase"]
[SourceQuality "1"]
[TimeControl "40/5400+30:1800+30"]

1. d4 {[%emt 0:01:34]} Nf6 {[%emt 0:00:07]} 2. c4 {[%emt 0:00:18]} e6 {[%emt 0:00:08]} 3. Nf3 {[%emt 0:00:11]} Bb4+ {[%emt 0:00:09]} 4. Nbd2 {[%emt 0:00:14]} b6 {[%emt 0:00:07]} 5. a3 {[%emt 0:00:20]} Bxd2+ {[%emt 0:00:15]} 6. Qxd2 {[%emt 0:00:08]} Bb7 {[%emt 0:00:14]} 7. e3 {[%emt 0:00:13]} O-O {[%emt 0:00:26]} 8. Be2 {[%emt 0:00:29]} d6 {[%emt 0:00:20]} 9. b4 {[%emt 0:00:31]} Nbd7 {[%emt 0:00:36]} 10. O-O {[%emt 0:00:26]} Qe7 {[%emt 0:00:13]} 11. Bb2 {[%emt 0:00:45]} e5 {[%emt 0:00:22]} 12. d5 {[%emt 0:03:48]} Rfd8 {[%emt 0:00:52]} 13. Rad1 {[%emt 0:03:07]} h6 {[%emt 0:01:40]} 14. Qc2 {[%emt 0:02:56]} c6 {[%emt 0:00:49]} 15. dxc6 {[%emt 0:10:05]} Bxc6 {[%emt 0:00:07]} 16. Nd2 {[%emt 0:03:26]} Rac8 {[%emt 0:02:05]} 17. Qb3 {[%emt 0:06:16]} Ne4 {[%emt 0:08:19]} 18. Nxe4 {[%emt 0:03:14]} Bxe4 {[%emt 0:00:12]} 19. f3 {[%emt 0:00:24]} Bf5 {[%emt 0:01:30]} 20. Qa4 {[%emt 0:06:43]} Nf8 {[%emt 0:04:40]} 21. Rd2 {[%emt 0:02:00]} Ng6 {[%emt 0:09:10]} 22. Kh1 {[%emt 0:06:27]} Qg5 {[%emt 0:14:10]} 23. Qb3 {[%emt 0:02:07]} Be6 {[%emt 0:03:03]} 24. a4 {[%emt 0:01:26]} Nh4 {[%emt 0:13:21]} 25. g3 {[%emt 0:03:07]} Nf5 {[%emt 0:01:34]} 26. f4 {[%emt 0:00:58]} Nxg3+ {[%emt 0:08:40]} 27. hxg3 {[%emt 0:02:07]} Qxg3 {[%emt 0:00:42]} 28. Bd3 {[%emt 0:12:28]} e4 {[%emt 0:19:00]} 29. f5 {[%emt 0:16:40]} Bxf5 {[%emt 0:03:24]} 30. Bc2 {[%emt 0:07:13]} d5 {[%emt 0:03:44]} 31. Rg2 {[%emt 0:01:00]} Qh3+ {[%emt 0:00:24]} 32. Kg1 {[%emt 0:00:07]} g5 {[%emt 0:04:36]} 33. cxd5 {[%emt 0:00:56]} *

[Event "FIDE WYCC Girls U18 2023"]
[Site "Montesilvano"]
[Date "2023.11.20"]
[Round "7.24"]
[White "Alexandrova, Angelina"]
[Black "Lindstad, Livia"]
[Result "*"]
[WhiteElo "1814"]
[BlackElo "1848"]
[Annotator "NA COMBH"]
[PlyCount "64"]
[EventDate "2023.11.13"]
[EventType "swiss"]
[EventCountry "ITA"]
[SourceTitle "playchess.com"]
[Source "ChessBase"]
[SourceQuality "1"]
[TimeControl "40/5400+30:1800+30"]

1. d4 {[%emt 0:00:03]} Nf6 {[%emt 0:00:22]} 2. Nf3 {[%emt 0:00:09]} b6 {[%emt 0:00:26]} 3. g3 {[%emt 0:00:24]} Bb7 {[%emt 0:00:42]} 4. Bg2 {[%emt 0:00:11]} e6 {[%emt 0:00:13]} 5. c4 {[%emt 0:02:19]} Be7 {[%emt 0:00:34]} 6. O-O {[%emt 0:01:08]} O-O {[%emt 0:00:12]} 7. b3 {[%emt 0:02:20]} c5 {[%emt 0:03:06]} 8. e3 {[%emt 0:02:24]} Qc7 {[%emt 0:03:32]} 9. Nc3 {[%emt 0:03:11]} Ne4 {[%emt 0:05:41]} 10. Bb2 {[%emt 0:10:40]} f5 {[%emt 0:03:08]} 11. d5 {[%emt 0:11:36]} Nxc3 {[%emt 0:09:15]} 12. Bxc3 {[%emt 0:00:06]} exd5 {[%emt 0:00:12]} 13. cxd5 {[%emt 0:00:15]} d6 {[%emt 0:00:47]} 14. Rc1 {[%emt 0:15:25]} Nd7 {[%emt 0:17:23]} 15. Qd3 {[%emt 0:10:22]} a5 {[%emt 0:11:26]} 16. Rfe1 {[%emt 0:00:49]} h6 {[%emt 0:07:28]} 17. e4 {[%emt 0:19:13]} fxe4 {[%emt 0:00:30]} 18. Qxe4 {[%emt 0:00:15]} Bf6 {[%emt 0:08:03]} 19. Bh3 {[%emt 0:09:04]} Rae8 {[%emt 0:07:50]} 20. Be6+ {[%emt 0:00:34]} Kh8 {[%emt 0:00:26]} 21. Nh4 {[%emt 0:02:04]} Bxh4 {[%emt 0:00:35]} 22. Qxh4 {[%emt 0:00:06]} Ne5 {[%emt 0:03:42]} 23. Bxe5 {[%emt 0:00:55]} dxe5 {[%emt 0:00:01]} 24. Rcd1 {[%emt 0:05:01]} Qd6 {[%emt 0:02:56]} 25. Qg4 {[%emt 0:00:55]} Rf6 {[%emt 0:05:41]} 26. f3 {[%emt 0:03:03]} Ref8 {[%emt 0:01:00]} 27. Re3 {[%emt 0:00:22]} Rd8 {[%emt 0:02:31]} 28. Rde1 {[%emt 0:00:32]} Bxd5 {[%emt 0:00:56]} 29. Bxd5 {[%emt 0:00:38]} Qxd5 {[%emt 0:00:18]} 30. Qe4 {[%emt 0:00:41]} Qxe4 {[%emt 0:01:35]} 31. Rxe4 {[%emt 0:00:02]} Rxf3 {[%emt 0:01:44]} 32. Rxe5 {[%emt 0:00:02]} Rd2 {[%emt 0:00:38]} *